bitfinex-derivatives/quotes_ETHF0:USTF0_20240817
["timestamp","ask_amount","ask_price","bid_price","bid_amount"]
[1723873606265,5.9164267,2600.2,2600.1,0.00389145]
[1723873606457,5.9164267,2600.2,2599.9,0.00577245]
[1723873606458,1.9225,2600.0,2599.9,0.00577245]
[1723873606660,3.2696067,2600.0,2599.9,0.00577245]
[1723873607461,3.2696067,2600.0,2599.9,0.01024769]
[1723873608464,5.78717205,2600.0,2599.9,0.01024769]
[1723873609371,1.92273,2599.7,2599.6,0.3511]
[1723873609573,1.9228,2599.6,2599.5,0.3781]
[1723873609764,4.29033636,2599.6,2599.5,0.3781]
[1723873610462,2.2768,2599.6,2599.5,0.38127138]
[1723873611069,0.354,2599.6,2599.5,0.38127138]
[1723873611274,1.8636356,2599.6,2599.5,0.38127138]
[1723873611466,3.7864356,2599.6,2599.5,0.38127138]
[1723873612668,3.4324356,2599.6,2599.5,0.38127138]
[1723873615578,1.9228,2599.6,2599.5,0.38127138]
[1723873615871,2.9283486,2599.6,2599.5,0.38127138]
[1723873616273,1.0055486,2599.6,2599.5,0.38127138]
[1723873616664,2.9283486,2599.6,2599.5,0.38127138]
[1723873627089,3.2920486,2599.6,2599.5,0.38127138]
[1723873629498,5.40803636,2599.6,2599.5,0.00317138]
[1723873630292,3.3945,2599.6,2599.5,0.00317138]
[1723873630699,5.40803636,2599.6,2599.5,0.00317138]
[1723873631093,3.3945,2599.6,2599.5,0.00317138]
[1723873631805,5.40803636,2599.6,2599.5,0.00317138]
[1723873635303,4.90099093,2599.6,2599.5,0.00317138]
[1723873639901,3.3945,2599.6,2599.5,0.00317138]
[1723873642402,5.40803636,2599.6,2599.5,0.00317138]
[1723873642801,3.3945,2599.6,2599.5,0.00317138]
[1723873643512,1.50780857,2599.7,2599.5,1.11117138]
[1723873643802,3.43053857,2599.7,2599.6,0.3545]
[1723873643996,3.43053857,2599.7,2599.6,0.6986]
[1723873644397,2.61580857,2599.8,2599.6,0.6986]
[1723873644607,1.00558102,2599.7,2599.6,10.0144]
[1723873644909,1.00558102,2599.8,2599.7,5.76913]
[1723873645111,1.00558102,2599.9,2599.7,5.76913]
[1723873645408,1.50780857,2599.9,2599.8,3.8464]
[1723873646005,1.0057404,2599.9,2599.8,3.8464]
[1723873646404,2.61580857,2600.0,2599.8,3.8464]
[1723873646612,2.61580857,2600.0,2599.8,4.2094]
[1723873646613,1.50780857,2599.9,2599.8,4.2094]
[1723873646902,1.50780857,2599.9,2599.8,7.24005]
[1723873647105,1.00590764,2600.0,2599.9,1.92258]
[1723873647410,5.62080857,2600.1,2599.9,6.23833]
[1723873647411,5.11890764,2600.1,2599.9,6.23833]
[1723873647605,5.11890764,2600.1,2600.0,0.3573]
[1723873647908,5.62080857,2600.1,2600.0,0.7272]
[1723873648207,5.62080857,2600.1,2600.0,4.5736]
[1723873648509,1.50780857,2600.1,2600.0,4.5736]
[1723873649309,1.50780857,2600.1,2600.0,7.7814]
[1723873649508,1.50780857,2600.1,2600.0,4.5736]
[1723873649810,2.61580857,2600.1,2600.0,4.5736]
[1723873650402,4.53823857,2600.1,2600.0,4.5736]
[1723873651602,4.53823857,2600.1,2600.0,0.7272]
[1723873651797,4.53823857,2600.1,2600.0,4.5736]
[1723873652003,4.53823857,2600.1,2600.0,0.7272]
[1723873652707,4.53823857,2600.1,2600.0,4.5736]
[1723873652915,4.53823857,2600.1,2600.0,0.7272]
[1723873657405,1.9225,2600.0,2599.9,3.2078]
[1723873657602,1.9225,2600.0,2599.5,3.39609138]
[1723873657603,1.92266,2599.8,2599.5,3.39609138]
[1723873657810,1.0062402,2599.8,2599.6,1.92279]
[1723873658107,2.9289002,2599.8,2599.6,1.92279]
[1723873659807,2.9288502,2599.9,2599.6,3.03079]
[1723873660617,1.92265,2599.8,2599.6,3.03079]
[1723873660906,1.9228,2599.6,2599.5,1.37245043]
[1723873661507,2.6385,2599.6,2599.5,1.37245043]
[1723873662615,3.6447402,2599.6,2599.5,0.36527138]
[1723873664417,3.2880402,2599.6,2599.5,0.36527138]
[1723873666506,1.3652402,2599.6,2599.5,0.36527138]
[1723873666712,3.2880402,2599.6,2599.5,0.36527138]
[1723873667820,2.2818,2599.6,2599.5,0.36527138]
[1723873669917,3.3898,2599.6,2599.5,0.00317138]
[1723873670118,5.3126,2599.6,2599.5,0.00317138]
[1723873672725,6.8219603,2599.6,2599.5,0.00317138]
[1723873674120,5.3126,2599.6,2599.5,0.00317138]
[1723873675414,1.92295,2599.4,2599.3,0.00577245]
[1723873675614,4.03634469,2599.4,2599.3,0.00577245]
[1723873676016,4.39824469,2599.4,2599.3,0.00577245]
[1723873676421,4.39824469,2599.4,2599.3,0.00961237]
[1723873680313,3.29024469,2599.4,2599.3,0.00961237]
[1723873680621,2.28485,2599.4,2599.3,0.00961237]
[1723873684431,3.29024469,2599.4,2599.3,0.00961237]
[1723873687324,2.28485,2599.4,2599.3,0.00961237]
[1723873687625,3.39285,2599.4,2599.3,0.00961237]
[1723873688924,4.90094203,2599.4,2599.3,0.00961237]
[1723873697738,3.39285,2599.4,2599.3,0.00961237]
[1723873700340,5.40638636,2599.4,2599.3,0.00961237]
[1723873700545,3.39285,2599.4,2599.3,0.00961237]
[1723873701447,5.40638636,2599.4,2599.3,0.00961237]
[1723873704734,3.39285,2599.4,2599.3,0.00961237]
[1723873705142,5.40556006,2599.4,2599.3,0.00961237]
[1723873705447,3.39285,2599.4,2599.3,0.00961237]
[1723873709241,7.24005,2599.4,2599.3,0.00961237]
[1723873709447,10.68687622,2599.4,2599.3,0.00961237]
[1723873710949,1.92312,2599.2,2598.9,2.29277]
[1723873711150,1.50999695,2599.0,2598.9,2.29277]
[1723873711444,1.50999695,2599.0,2598.9,0.3695]
[1723873711949,1.50999695,2599.0,2598.9,2.29645052]
[1723873715239,5.77430927,2599.1,2598.9,2.29645052]
[1723873716849,1.92324,2599.0,2598.9,0.37313052]
[1723873717445,1.51034357,2599.0,2598.9,0.37313052]
[1723873717852,1.51034357,2599.0,2598.9,1.38030957]
[1723873718053,1.51034357,2599.0,2598.9,4.58810957]
[1723873718353,1.51034357,2599.0,2598.9,1.38030957]
[1723873720252,1.51034357,2599.0,2598.9,0.37313052]
[1723873720640,1.51034357,2599.0,2598.9,1.38030957]
[1723873720844,1.51034357,2599.0,2598.9,0.37313052]
[1723873722051,1.51034357,2599.0,2598.9,1.38030957]
[1723873723955,1.51034357,2599.0,2598.9,1.34030957]
[1723873724159,1.51034357,2599.0,2598.9,0.33313052]
[1723873724560,1.51034357,2599.0,2598.9,3.26362957]
[1723873725447,1.51034357,2599.0,2598.9,2.25645052]
[1723873728064,1.51034357,2599.0,2598.9,0.33313052]
[1723873729465,1.51034357,2599.0,2598.9,3.26362957]
[1723873730661,1.51034357,2599.0,2598.9,1.34030957]
[1723873731263,4.66633927,2599.1,2598.9,0.33313052]
[1723873731665,1.51069204,2599.0,2598.9,1.34030957]
[1723873733253,4.66633927,2599.1,2598.9,1.34030957]
[1723873736569,1.51089863,2599.0,2598.9,1.34030957]
[1723873738471,4.66633927,2599.1,2598.9,1.34030957]
[1723873739371,2.01332927,2599.0,2598.9,1.34030957]
[1723873741061,4.66633927,2599.1,2598.9,3.26362957]
[1723873741261,4.66633927,2599.1,2598.9,1.34030957]
[1723873742060,1.92324,2599.0,2598.9,1.34030957]
[1723873742275,3.93656927,2599.0,2598.9,1.34030957]
[1723873742462,3.93656927,2599.0,2598.9,1.01080957]
[1723873742670,1.92324,2599.0,2598.9,0.00363052]
[1723873744263,2.16231155,2599.0,2598.9,0.00363052]
[1723873744473,4.43990159,2599.0,2598.9,0.00363052]
[1723873745263,1.92324,2599.0,2598.9,0.00363052]
[1723873745659,4.43990159,2599.0,2598.9,0.00363052]
[1723873745864,2.51666159,2599.0,2598.9,0.00363052]
[1723873746971,2.01463984,2599.0,2598.9,0.00363052]
[1723873748571,3.93787984,2599.0,2598.9,0.00363052]
[1723873748969,1.92324,2599.0,2598.9,0.00363052]
[1723873750775,4.43990159,2599.0,2598.9,0.00363052]
[1723873751077,5.37015926,2599.0,2598.9,0.00363052]
[1723873751577,7.29339926,2599.0,2598.9,0.00363052]
[1723873751777,11.14139926,2599.0,2598.9,0.00363052]
[1723873755175,7.93359926,2599.0,2598.9,0.00363052]
[1723873757474,5.17230468,2599.1,2598.9,0.00363052]
[1723873757782,6.28030468,2599.1,2598.9,0.00363052]
[1723873758180,4.35708468,2599.1,2598.9,0.00363052]
[1723873758883,2.01570682,2599.0,2598.9,0.00363052]
[1723873759079,2.01570682,2599.0,2598.9,1.92695052]
[1723873759475,2.01570682,2599.0,2598.9,5.77495052]
[1723873759678,2.01570682,2599.0,2598.9,6.88295052]
[1723873759876,1.51203186,2599.1,2599.0,1.92324]
[1723873760187,1.51203186,2599.1,2599.0,9.81020777]
[1723873760386,1.00812761,2599.1,2599.0,15.67215229]
[1723873760686,1.00812761,2599.2,2599.1,1.92317]
[1723873760981,1.00811594,2599.2,2599.1,7.62756722]
[1723873761279,1.00811594,2599.3,2599.2,1.9231]
[1723873761482,1.00811594,2599.3,2599.2,13.01746011]
[1723873761682,1.00811594,2599.3,2599.2,22.52193739]
[1723873762275,1.00811594,2599.3,2599.2,21.01001305]
[1723873762482,1.00811594,2599.5,2599.4,1.92295]
[1723873762779,1.00811594,2599.6,2599.5,1.92287]
[1723873762981,1.51203186,2599.7,2599.6,1.9228]
[1723873763379,1.00719357,2599.7,2599.6,5.7692]
[1723873764582,1.51203186,2599.7,2599.6,1.9228]
[1723873764798,0.3547,2599.7,2599.6,5.7692]
[1723873765174,1.36156963,2599.7,2599.6,5.7692]
[1723873765587,0.3547,2599.7,2599.6,5.7692]
[1723873765883,2.45676963,2599.8,2599.6,5.7692]
[1723873766083,2.45676963,2599.8,2599.6,1.9228]
[1723873767585,1.00686963,2599.7,2599.6,1.9228]
[1723873767973,2.45676963,2599.8,2599.6,5.7692]
[1723873768187,2.45676963,2599.8,2599.6,1.9228]
[1723873770391,1.4499,2599.8,2599.6,1.9228]
[1723873775081,1.4499,2599.8,2599.6,2.2977]
[1723873781594,3.37256,2599.8,2599.6,0.3749]
[1723873782000,0.3569,2599.7,2599.6,0.3749]
[1723873782194,0.3569,2599.7,2599.6,2.2977]
[1723873782391,0.3569,2599.7,2599.6,0.3749]
[1723873783098,1.4649,2599.7,2599.1,4.21520749]
[1723873783296,3.03108,2599.3,2599.1,3.2078]
[1723873783495,1.1085,2599.2,2599.1,3.2078]
[1723873784299,3.0316,2599.2,2599.1,3.2078]
[1723873787101,1.1085,2599.2,2599.1,3.2078]
[1723873787309,1.1085,2599.2,2599.1,6.23897]
[1723873787711,0.367,2599.2,2599.1,6.23897]
[1723873788810,0.7261,2599.4,2599.3,1.92302]
[1723873791816,0.3545,2599.4,2599.3,1.92302]
[1723873792124,0.3689,2599.6,2599.5,1.92287]
[1723873792416,0.3689,2599.6,2599.4,1.9229]
[1723873792811,0.3689,2599.6,2599.4,10.19566513]
[1723873793013,0.3689,2599.6,2599.5,1.92287]
[1723873793422,0.3689,2599.6,2599.5,5.77007]
[1723873793619,0.3689,2599.6,2599.5,6.14367]
[1723873793815,0.3689,2599.6,2599.5,2.29647]
[1723873794621,0.3689,2599.6,2599.5,1.92287]
[1723873796420,0.3734,2599.7,2599.6,1.9228]
[1723873796717,0.3597,2599.8,2599.7,1.92273]
[1723873796914,0.3597,2599.8,2599.7,3.03073]
[1723873797511,1.74156963,2599.9,2599.7,3.03073]
[1723873797826,0.7347,2599.9,2599.7,3.03073]
[1723873798123,0.7347,2599.9,2599.7,1.108]
[1723873798323,0.7347,2599.9,2599.7,3.03068]
[1723873798520,0.7347,2599.9,2599.7,1.108]
[1723873798721,0.7347,2599.9,2599.7,3.03069]
[1723873799425,1.74156963,2599.9,2599.7,3.03069]
[1723873800123,0.7347,2599.9,2599.7,3.03069]
[1723873800320,3.66415963,2599.9,2599.7,3.03069]
[1723873800525,2.84956963,2599.9,2599.6,3.76035]
[1723873800719,1.92266,2599.8,2599.6,3.76035]
[1723873800920,4.77219963,2599.9,2599.7,1.92271]
[1723873801330,4.77219963,2599.9,2599.6,1.8376]
[1723873801331,3.35473186,2599.9,2599.8,1.92265]
[1723873802122,1.92269,2599.8,2599.6,1.4842]
[1723873802426,2.92909458,2599.8,2599.6,1.4842]
[1723873803521,1.00640458,2599.7,2599.6,1.4842]
[1723873803931,1.00640458,2599.7,2599.6,5.3306]
[1723873804627,1.00640458,2599.7,2599.6,7.2534]
[1723873805027,1.00640458,2599.7,2599.6,5.3306]
[1723873805224,1.00640458,2599.7,2599.6,7.2534]
[1723873805532,3.43476186,2599.7,2599.6,4.2226]
[1723873805728,3.80006186,2599.7,2599.5,4.21520749]
[1723873805927,3.80006186,2599.7,2599.5,5.13067]
[1723873805928,1.85823186,2599.6,2599.5,5.13067]
[1723873806130,4.88903186,2599.6,2599.5,3.2078]
[1723873808229,1.92295,2599.4,2599.3,1.00740749]
[1723873808436,2.93069919,2599.4,2599.3,1.00740749]
[1723873808621,3.43457379,2599.4,2599.2,2.93047749]
[1723873808826,1.35822416,2599.3,2599.2,2.26687]
[1723873809028,1.35822416,2599.3,2599.2,5.19802881]
[1723873809833,1.35822416,2599.3,2599.2,5.19804044]
[1723873810230,1.35822416,2599.3,2599.2,3.27480826]
[1723873810432,1.35822416,2599.3,2599.2,5.19809778]
[1723873810827,1.35822416,2599.3,2599.2,1.00793826]
[1723873810828,5.25014379,2599.3,2599.2,1.00793826]
[1723873811020,3.73852,2599.3,2599.2,1.00793826]
[1723873811229,5.25014379,2599.3,2599.2,1.00793826]
[1723873811535,3.73852,2599.3,2599.2,1.00793826]
[1723873812423,4.74634268,2599.3,2599.2,1.00793826]
[1723873813433,1.71532268,2599.3,2599.2,2.93103826]
[1723873813937,1.71532268,2599.3,2599.2,3.29723826]
[1723873814823,1.71532268,2599.3,2599.2,1.37413826]
[1723873815030,1.71532268,2599.3,2599.2,3.29723826]
[1723873815231,0.3505,2599.3,2599.2,4.21258607]
[1723873815436,0.3505,2599.3,2599.2,6.08297251]
[1723873816031,1.35832268,2599.3,2599.2,5.57959343]
[1723873816337,0.3505,2599.3,2599.2,6.08297251]
[1723873816738,1.00782268,2599.4,2599.3,1.92302]
[1723873817037,0.3695,2599.5,2599.4,1.92295]
[1723873817231,1.88112379,2599.5,2599.4,1.92295]
[1723873818036,1.37723454,2599.5,2599.4,2.93069545]
[1723873818224,1.88112379,2599.5,2599.4,1.92295]
[1723873818630,0.3695,2599.5,2599.4,2.93069545]
[1723873819137,1.37725509,2599.5,2599.4,2.93069545]
[1723873819337,0.3695,2599.5,2599.4,2.93069545]
[1723873819636,1.37725936,2599.5,2599.4,2.93069545]
[1723873820536,0.3695,2599.5,2599.4,2.93069545]
[1723873821339,1.3772116,2599.5,2599.4,2.93069545]
[1723873821933,1.37718662,2599.5,2599.4,2.93069545]
[1723873822242,1.88112379,2599.5,2599.4,1.92295]
[1723873822537,1.88112379,2599.5,2599.4,2.93069545]
[1723873823742,1.88112379,2599.5,2599.4,1.00774545]
[1723873824033,1.88112379,2599.5,2599.3,1.92301]
[1723873824034,0.3695,2599.5,2599.3,1.92301]
[1723873824236,1.87730465,2599.4,2599.3,1.92301]
[1723873824640,1.87730465,2599.4,2599.3,2.93075545]
[1723873824940,1.87730465,2599.4,2599.3,1.92301]
[1723873825432,1.87730465,2599.4,2599.3,2.93075545]
[1723873825827,1.87730465,2599.4,2599.3,1.00774545]
[1723873826037,1.87730465,2599.4,2599.3,1.92302]
[1723873826335,1.87730465,2599.4,2599.3,2.93076545]
[1723873827231,1.87730465,2599.4,2599.3,1.00774545]
[1723873827439,1.87730465,2599.4,2599.3,2.93076545]
[1723873828536,1.87730465,2599.4,2599.3,1.92302]
[1723873829243,1.87730465,2599.4,2599.3,2.93076545]
[1723873829439,1.37363217,2599.4,2599.3,2.93076545]
[1723873830135,0.3659,2599.4,2599.3,2.93076545]
[1723873830444,1.00753426,2599.4,2599.3,4.85390987]
[1723873830645,1.00753426,2599.4,2599.3,5.35735086]
[1723873831243,1.00753426,2599.4,2599.3,4.85416974]
[1723873831443,1.00753426,2599.4,2599.3,5.35735086]
[1723873831839,1.00753426,2599.4,2599.3,3.84616442]
[1723873832241,1.00753426,2599.4,2599.3,1.92302]
[1723873832437,1.00753426,2599.4,2599.3,3.84614983]
[1723873833243,0.3593,2599.4,2599.3,4.85430843]
[1723873833446,0.3593,2599.4,2599.3,3.84614983]
[1723873833643,1.87070465,2599.4,2599.3,2.93130067]
[1723873833838,1.87119831,2599.4,2599.3,1.92302]
[1723873834038,0.3593,2599.4,2599.3,1.92302]
[1723873834435,0.3593,2599.4,2599.2,4.40540084]
[1723873834638,1.51193605,2599.3,2599.2,4.40540084]
[1723873834950,1.51193605,2599.3,2599.2,10.40953939]
[1723873835147,1.51193605,2599.3,2599.2,8.48625282]
[1723873835348,1.51193605,2599.3,2599.2,4.03920084]
[1723873835647,3.43495605,2599.3,2599.2,1.00817084]
[1723873835949,1.51193605,2599.3,2599.2,2.93126084]
[1723873836152,1.51193605,2599.3,2599.2,4.85454842]
[1723873836350,3.79422605,2599.4,2599.2,5.21214842]
[1723873836652,1.51193605,2599.3,2599.2,3.28886084]
[1723873837743,1.51193605,2599.3,2599.2,5.21215783]
[1723873837949,1.51193605,2599.3,2599.2,3.28886084]
[1723873838146,1.51193605,2599.3,2599.2,5.21216284]
[1723873838348,3.79422605,2599.4,2599.2,5.21216284]
[1723873838548,3.79422605,2599.4,2599.2,3.28886084]
[1723873838755,1.51193605,2599.3,2599.2,3.28886084]
[1723873839054,1.51193605,2599.3,2599.2,5.21213922]
[1723873839648,3.79422605,2599.4,2599.2,5.21213922]
[1723873839852,1.51193605,2599.3,2599.2,2.93126084]
[1723873840154,1.51193605,2599.3,2599.2,1.00817084]
[1723873840653,3.43495605,2599.3,2599.2,1.00817084]
[1723873840950,3.43495605,2599.3,2599.1,4.03931084]
[1723873840951,1.92302,2599.3,2599.1,4.03931084]
[1723873841155,4.5431318,2599.2,2599.1,1.00817084]
[1723873841345,1.92317,2599.1,2599.0,1.00817084]
[1723873841648,1.92324,2599.0,2598.9,0.00363052]
[1723873841851,3.93894682,2599.0,2598.9,0.00363052]
[1723873842046,7.78694682,2599.0,2598.9,0.00363052]
[1723873842245,5.77124,2599.0,2598.9,0.00363052]
[1723873842449,7.78559088,2599.0,2598.9,0.00363052]
[1723873844257,5.77124,2599.0,2598.9,0.00363052]
[1723873845558,1.92324,2599.0,2598.9,1.11163052]
[1723873846059,2.92984881,2599.0,2598.9,1.11163052]
[1723873846244,3.43329985,2599.0,2598.9,1.11163052]
[1723873848047,3.43329985,2599.0,2598.9,0.00363052]
[1723873848455,1.92324,2599.0,2598.9,0.00363052]
[1723873848760,3.43265888,2599.0,2598.9,0.00363052]
[1723873849056,7.28065888,2599.0,2598.9,0.00363052]
[1723873849449,3.03124,2599.0,2598.9,0.00363052]
[1723873850055,6.87924,2599.0,2598.9,0.00363052]
[1723873851047,8.38842494,2599.0,2598.9,0.00363052]
[1723873851247,3.43242494,2599.0,2598.9,0.00363052]
[1723873851458,1.92324,2599.0,2598.9,0.00363052]
[1723873851759,3.43242494,2599.0,2598.9,0.00363052]
[1723873853248,1.92324,2599.0,2598.9,0.00363052]
[1723873853453,3.43242494,2599.0,2598.9,0.00363052]
[1723873854056,1.92324,2599.0,2598.9,0.00363052]
[1723873854445,1.0061018,2599.0,2598.9,1.92695052]
[1723873854653,1.0061018,2599.0,2598.9,3.03495052]
[1723873855058,1.50918494,2599.0,2598.9,3.03495052]
[1723873855262,1.00603782,2599.0,2598.9,3.03495052]
[1723873857855,1.00603782,2599.0,2598.9,1.11163052]
[1723873858061,1.00603782,2599.0,2598.9,1.92695052]
[1723873858656,4.50875494,2599.1,2598.9,1.92695052]
[1723873859553,1.00580921,2599.0,2598.9,1.92695052]
[1723873859949,4.50875494,2599.1,2598.9,1.92695052]
[1723873860151,1.00581168,2599.0,2598.9,1.92695052]
[1723873862256,4.00538168,2599.1,2598.9,1.92695052]
[1723873862456,4.00538168,2599.1,2599.0,1.92324]
[1723873862665,1.36061168,2599.1,2599.0,1.92324]
[1723873862965,2.27367,2599.3,2599.1,1.92317]
[1723873863266,2.92888168,2599.3,2599.2,0.3657]
[1723873863561,2.92888168,2599.3,2599.2,0.7172]
[1723873865559,4.03688168,2599.3,2599.2,0.7172]
[1723873865859,4.03688168,2599.3,2599.2,0.3657]
[1723873865860,4.54025494,2599.3,2599.2,0.3657]
[1723873866660,1.92316,2599.2,2599.0,3.3814]
[1723873866971,3.28300868,2599.2,2599.0,3.3814]
[1723873867353,1.92317,2599.1,2599.0,3.3814]
[1723873867558,1.92317,2599.1,2599.0,1.4582]
[1723873868063,1.92317,2599.1,2599.0,3.38144]
[1723873868661,2.92931868,2599.1,2599.0,1.4582]
[1723873868862,2.92931868,2599.1,2598.9,1.92690052]
[1723873869058,0.3526,2599.0,2598.9,1.92690052]
[1723873873865,0.3526,2599.0,2598.9,3.03490052]
[1723873874570,0.3526,2599.0,2598.9,4.04307136]
[1723873875059,3.28298868,2599.2,2599.0,1.92321]
[1723873875265,3.28298868,2599.2,2599.1,0.3771]
[1723873875966,1.35984868,2599.2,2599.1,2.30027]
[1723873876172,1.37594868,2599.3,2599.2,1.92309]
[1723873876369,0.3698,2599.3,2599.2,1.92309]
[1723873876571,1.87898494,2599.3,2599.2,1.92309]
[1723873878069,3.80200494,2599.3,2599.1,3.40823]
[1723873878265,1.00703299,2599.2,2599.1,3.40823]
[1723873878670,3.80200494,2599.3,2599.1,3.03113]
[1723873878862,3.80200494,2599.3,2599.1,1.92313]
[1723873879069,1.50918494,2599.2,2599.1,1.92313]
[1723873880768,1.00730295,2599.2,2599.1,1.92313]
[1723873881173,1.50918494,2599.2,2599.1,1.92313]
[1723873881969,3.80200494,2599.3,2599.1,1.92313]
[1723873882169,3.80200494,2599.3,2599.1,3.03113]
[1723873882170,1.50918494,2599.2,2599.1,3.03113]
[1723873882376,1.87898494,2599.3,2599.2,1.92309]
[1723873882567,0.3698,2599.3,2599.2,1.92309]
[1723873883073,1.88089385,2599.3,2599.2,1.92309]
[1723873883479,1.37724813,2599.3,2599.2,1.92309]
[1723873884676,1.88089385,2599.3,2599.2,1.92309]
[1723873885176,1.37732333,2599.3,2599.2,1.92309]
[1723873886870,0.3698,2599.3,2599.2,1.92309]
[1723873887284,1.37731129,2599.3,2599.2,1.92309]
[1723873887582,0.3698,2599.3,2599.2,1.92309]
[1723873888587,1.37732497,2599.3,2599.2,1.92309]
[1723873889585,1.37732497,2599.3,2599.2,3.38649]
[1723873893084,0.3698,2599.3,2599.2,4.39466084]
[1723873894995,0.3698,2599.3,2599.2,3.38649]
[1723873895294,1.37732497,2599.3,2599.2,2.27849]
[1723873895490,1.37732497,2599.3,2599.2,3.38649]
[1723873896588,1.00752497,2599.4,2599.3,1.92302]
[1723873896784,1.00752497,2599.5,2599.4,1.92295]
[1723873897292,1.00752497,2599.5,2599.4,5.77015]
[1723873898593,1.74132497,2599.5,2599.4,5.77015]
[1723873899590,0.7338,2599.5,2599.4,5.77015]
[1723873899985,0.3577,2599.5,2599.4,1.92295]
[1723873900182,0.3577,2599.5,2599.4,6.77832084]
[1723873900591,1.35962497,2599.8,2599.4,14.84086879]
[1723873900789,1.35962497,2599.8,2599.7,1.108]
[1723873900998,1.35962497,2599.8,2599.7,3.03073]
[1723873903800,1.00752497,2599.9,2599.8,1.92265]
[1723873903998,1.00752497,2600.1,2599.8,7.88378017]
[1723873904191,0.00577245,2600.2,2600.1,1.92243]
[1723873904396,0.00577245,2600.2,2600.1,2.26713]
[1723873908996,0.00577245,2600.2,2600.1,11.11273]
[1723873909204,0.00577245,2600.2,2600.1,15.14844005]
[1723873909407,0.00293596,2600.5,2600.4,1.92221]
[1723873909596,0.00293596,2600.5,2600.4,6.23801]
[1723873910404,0.00293596,2600.5,2600.4,10.08361]
[1723873910606,0.00293596,2600.5,2600.4,14.30072971]
[1723873913498,0.00293596,2600.5,2600.4,11.09292971]
[1723873918504,0.00293596,2600.5,2600.4,3.03021]
[1723873918710,0.00293596,2600.5,2600.4,1.92221]
[1723873921107,0.00293596,2600.5,2600.2,2.27020245]
[1723873921108,1.92508596,2600.5,2600.2,2.27020245]
[1723873921415,1.92228,2600.3,2600.2,0.00577245]
[1723873921908,6.12768,2600.3,2600.2,0.00577245]
[1723873924604,4.2054,2600.3,2600.2,0.00577245]
[1723873924812,0.3598,2600.3,2600.2,3.03613245]
[1723873925109,4.2054,2600.3,2600.2,3.03613245]
[1723873925301,0.3598,2600.3,2600.2,3.03613245]
[1723873926707,0.3598,2600.3,2600.2,1.11377245]
[1723873927716,0.3598,2600.3,2600.2,0.00577245]
[1723873927917,2.28208,2600.3,2600.2,0.00577245]
[1723873928511,6.12768,2600.3,2600.2,0.00577245]
[1723873930217,11.12768,2600.3,2600.2,0.00577245]
[1723873930722,12.23568,2600.3,2600.2,0.00577245]
[1723873931115,6.12768,2600.3,2600.2,0.00577245]
[1723873931416,0.3598,2600.3,2600.2,3.03613245]
[1723873931621,0.3598,2600.3,2600.2,1.11377245]
[1723873932018,0.3598,2600.3,2600.2,1.49057245]
[1723873934118,2.28208,2600.3,2600.2,0.00577245]
[1723873934516,0.3598,2600.3,2600.2,0.00577245]
[1723873937930,2.28208,2600.3,2600.2,0.00577245]
[1723873938127,3.28960497,2600.3,2600.2,0.00577245]
[1723873938518,7.13520497,2600.3,2600.2,0.00577245]
[1723873939333,6.12768,2600.3,2600.2,0.00577245]
[1723873939634,3.28675666,2600.3,2600.2,0.00577245]
[1723873940526,2.28208,2600.3,2600.2,0.00577245]
[1723873940730,3.28675666,2600.3,2600.2,0.00577245]
[1723873940932,2.28208,2600.3,2600.2,0.00577245]
[1723873941131,3.28675666,2600.3,2600.2,0.00577245]
[1723873942229,1.36447666,2600.3,2600.2,1.11377245]
[1723873942526,0.3598,2600.3,2600.2,1.11377245]
[1723873943426,1.36447666,2600.3,2600.2,1.11377245]
[1723873943728,0.3598,2600.3,2600.2,1.11377245]
[1723873944126,1.36447666,2600.3,2600.2,1.11377245]
[1723873944329,1.36447666,2600.3,2600.2,3.03613245]
[1723873944632,1.00467666,2600.3,2600.2,7.24743245]
[1723873946436,1.00589047,2600.3,2600.2,7.24743245]
[1723873946636,1.51109385,2600.4,2600.2,7.24743245]
[1723873946836,1.00597715,2600.3,2600.2,3.40183245]
[1723873947136,1.51109385,2600.3,2600.2,3.40183245]
[1723873947730,3.43337385,2600.3,2600.2,0.00577245]
[1723873947932,2.29298,2600.3,2600.2,0.00577245]
[1723873948137,3.80225853,2600.3,2600.2,0.00577245]
[1723873948327,2.29298,2600.3,2600.2,0.00577245]
[1723873950032,3.80268721,2600.3,2600.2,0.00577245]
[1723873950227,2.29298,2600.3,2600.2,0.00577245]
[1723873950530,12.37666,2600.3,2600.2,0.00577245]
[1723873950731,1.92236,2600.2,2599.8,1.4512]
[1723873950936,2.92891816,2599.9,2599.8,1.4512]
[1723873951138,2.92891816,2599.9,2599.8,1.108]
[1723873951333,3.78978724,2599.9,2599.8,1.108]
[1723873954437,1.36347223,2599.9,2599.8,1.108]
[1723873954642,3.28605223,2599.9,2599.8,1.108]
[1723873956349,2.28028,2599.9,2599.8,1.108]
[1723873956639,3.78978724,2599.9,2599.8,1.108]
[1723873956827,2.28028,2599.9,2599.8,1.108]
[1723873957240,3.78978724,2599.9,2599.8,1.108]
[1723873964539,2.28028,2599.9,2599.8,1.108]
[1723873967439,3.7898677,2599.9,2599.8,1.108]
[1723873968139,3.7898677,2599.9,2599.8,1.4861]
[1723873968748,3.78985508,2599.9,2599.8,1.4861]
[1723873972550,3.79005589,2599.9,2599.8,1.4861]
[1723873973141,2.28028,2599.9,2599.8,1.4861]
[1723873973345,3.79008056,2599.9,2599.8,1.4861]
[1723873975754,2.28028,2599.9,2599.8,1.4861]
[1723873978247,3.79013551,2599.9,2599.8,1.4861]
[1723873978559,3.79013551,2599.9,2599.8,0.3781]
[1723873978757,1.92273,2599.7,2599.6,1.11377245]
[1723873978947,3.4325696,2599.7,2599.6,1.11377245]
[1723873980861,1.5098396,2599.7,2599.6,1.11377245]
[1723873981549,3.4325696,2599.7,2599.6,1.11377245]
[1723873982658,1.00670192,2599.7,2599.6,3.03657245]
[1723873982847,1.00670192,2599.7,2599.6,4.0424405]
[1723873983043,1.00670192,2599.7,2599.6,3.03657245]
[1723873985756,1.00670192,2599.7,2599.6,4.0424405]
[1723873986061,1.00670192,2599.7,2599.6,3.03657245]
[1723873986250,1.00670192,2599.7,2599.6,4.0424405]
[1723873986658,1.00670192,2599.7,2599.6,3.03657245]
[1723873986956,1.00670192,2599.7,2599.6,4.0424405]
[1723873987660,1.00670192,2599.7,2599.6,3.03657245]
[1723873988059,1.00670192,2599.7,2599.6,4.0424405]
[1723873988460,1.00670192,2599.7,2599.6,3.03657245]
[1723873988766,1.8531396,2599.8,2599.6,3.03657245]
[1723873988965,1.8531396,2599.8,2599.7,1.108]
[1723873989468,0.3433,2599.8,2599.7,1.108]